Cogmind - Beta 13 @@@ ROGUE MODE // 2024.04.21 @ 18:38:55 Player: LEWiKK Result: Destroyed by Y-45 Defender with Beam Rifle Performance ------------- Evolutions (2) 1000 Regions Visited (4) 800 Robots Destroyed (33) 165 Value Destroyed (945) 945 Prototype IDs (4) 80 Alien Tech Used (0) 0 Bonus (0) 0 TOTAL SCORE: 2990 Bonus ------- None Cogmind --------- Core Integrity 0/550 Matter 300/300 Energy 99/100 System Corruption 8% Temperature Cool (9) Movement Core (150) Ox2 Location -8/Storage Parts ------- > --- POWER (1) -------- (None) > --- PROPULSION (4) --- (None) > --- UTILITY (4) ------ Small Storage Unit Improved Trap Extractor (0/6) > --- WEAPON (2) ------- (None) > --- INVENTORY (8) ---- Improved Ion Engine Weapon Cycler Medium Armor Plating Shield Generator Improved Trap Extractor (0/6) Heavy EM Shotgun Heavy EM Shotgun Peak State ------------ > --- POWER ------------ Improved Ion Engine > --- PROPULSION ------- Light Treads Light Treads Light Treads Aluminum Leg > --- UTILITY ---------- Small Storage Unit Weapon Cycler Weapon Cycler Improved Trap Extractor > --- WEAPON ----------- Heavy EM Shotgun Heavy EM Shotgun > --- INVENTORY -------- Improved Ion Engine Light Treads Weapon Cycler Medium Armor Plating Shield Generator Improved Trap Extractor Heavy EM Shotgun Datajack [Rating: 29] Favorites ----------- Power Light Ion Engine Engine Light Ion Engine Propulsion Aluminum Leg Treads Light Treads Leg Aluminum Leg Utility Small Storage Unit Device Weapon Cycler Storage Small Storage Unit Protection Medium Armor Plating Weapon Shotgun Energy Gun Heavy EM Shotgun Energy Cannon Advanced Beam Cannon Ballistic Gun Shotgun Special Melee Weapon Datajack Build | -11 -10 -9 -8 -8 ------- Run | Yrd Mat Mat Mat Sto Slots Evolved 4 | . . 2 2 . Power . | . . . . . Propulsion 2 | . . 1 1 . Utility 2 | . . 1 1 . Weapon . | . . . . . Parts Attached 27 | . 5 3 6 13 Power 5 | . 2 1 . 2 Engine 5 | . 2 1 . 2 Core . | . . . . . Reactor . | . . . . . Propulsion 8 | . . 1 1 6 Treads 5 | . . . . 5 Leg 3 | . . 1 1 1 Wheel . | . . . . . Hover . | . . . . . Flight . | . . . . . Utility 5 | . 1 1 3 . Device 4 | . 1 . 3 . Storage . | . . . . . Processor . | . . . . . Hackware . | . . . . . Protection 1 | . . 1 . . Artifact . | . . . . . Weapon 9 | . 2 . 2 5 Energy Gun 3 | . . . 1 2 Energy Cannon 1 | . . . . 1 Ballistic Gun 3 | . 2 . 1 . Ballistic Cannon . | . . . . . Launcher . | . . . . . Special Weapon . | . . . . . Impact Weapon . | . . . . . Slashing Weapon . | . . . . . Piercing Weapon . | . . . . . Special Melee Weapon 2 | . . . . 2 Unidentified Prototypes 2 | . . . . 2 Parts Lost 25 | . 4 5 . 16 Power 6 | . 2 1 . 3 Propulsion 9 | . . 1 . 8 Utility 3 | . . 1 . 2 Weapon 7 | . 2 2 . 3 Highest Loss Streak 8 | . 2 4 . 8 To Critical Strikes 1 | . . . . 1 Average Slot Usage (%) 88 | . 92 87 85 85 Engine 10 | . 12 10 9 7 Treads 5 | . . . . 16 Leg 20 | . 28 23 27 10 Device 16 | . 10 11 22 26 Storage 11 | . 14 11 9 9 Protection 2 | . . 10 . . Energy Gun 2 | . . . 9 7 Ballistic Gun 16 | . 25 20 9 4 Naked Turns . | . . . . . Heaviest Build 25 | 11 16 23 20 25 Greatest Support 60 | 20 20 30 30 60 Greatest Overweight (x) 2 | . . 1 . 2 Average Overweight (x) . | . . . . . Largest Inventory Capacity 8 | . 8 8 8 8 Average Capacity 8 | . 8 8 8 8 Most Carried 8 | . 8 8 8 8 Average Carried 6 | . 7 6 6 6 Final Capacity 8 | 8 8 8 8 8 Final Carried 8 | 6 6 8 7 7 Class Distribution -------------------- 77% | Mutant 22% | Scavenger-Mutant Dominant Class ---------------- Mutant | -10/Materials Mutant | -9/Materials Mutant | -8/Materials Scavenger-Mutant | -8/Storage Resources | -11 -10 -9 -8 -8 ----------- Run | Yrd Mat Mat Mat Sto Matter Collected 949 | 200 247 259 . 243 Remotely . | . . . . . Salvage Created 1036 | . 296 307 . 433 Parts 68 | . 16 32 . 20 Haulers Intercepted . | . . . . . Recyclers Shooed 3 | . 1 . . 2 Parts Field Recycled . | . . . . . Retrieved Matter . | . . . . . Parts Self-Destructed . | . . . . . Prevented . | . . . . . Kills | -11 -10 -9 -8 -8 ------- Run | Yrd Mat Mat Mat Sto Combat Hostiles Destroyed 33 | . 7 17 . 9 Guns 31 | . 7 17 . 7 Cannons 1 | . . . . 1 Classes Destroyed 4 | . 1 1 . 2 Swarmer 13 | . . 13 . . Grunt 14 | . 7 4 . 3 Brawler 1 | . . . . 1 Sentry 5 | . . . . 5 Best Kill Streak 5 | . 2 5 . 4 Combat Bots Only 5 | . 2 5 . 4 Max Kills in Single Turn 2 | . 1 2 . 1 Gunslinging 1 | . . 1 . . Exploded . | . . . . . Melee . | . . . . . Uniques/NPCs Destroyed . | . . . . . Combat | -11 -10 -9 -8 -8 -------- Run | Yrd Mat Mat Mat Sto Hostile Shots Fired 342 | . 66 86 . 190 Missed 109 | . 19 27 . 63 Damage Taken 3032 | . 652 538 . 1842 Core 824 | . 146 122 . 556 Absorbed by Shields . | . . . . . Core Remaining (%) 70 | 100 41 69 . . Volleys Fired 123 | . 55 33 . 35 Largest 2 | . 2 2 . 2 Hottest 100 | . 46 46 . 100 Shots Fired 210 | . 78 63 . 69 Gun 204 | . 78 63 . 63 Cannon 6 | . . . . 6 Launcher . | . . . . . Special . | . . . . . Kinetic 169 | . 78 63 . 28 Thermal 29 | . . . . 29 Explosive . | . . . . . Electromagnetic 12 | . . . . 12 Robot Hit Streak 15 | . 12 6 . 15 Robot Miss Streak 13 | . 4 13 . 4 Penetration Max . | . . . . . Secondary Targets 4 | . . 2 . 2 Max Gunslinging Chain 1 | . . 1 . 1 Shots Hit Robots 161 | . 58 41 . 62 Core Hits 69 | . 16 20 . 33 Critical Kills 2 | . 1 1 . . Critical Parts Destroyed 1 | . 1 . . . Critical Strikes 3 | . 2 1 . . Destroy 3 | . 2 1 . . Melee Attacks 1 | . . . . 1 Impact . | . . . . . Slashing . | . . . . . Piercing . | . . . . . Sneak Attacks 1 | . . . . 1 Combat Hostiles . | . . . . . Follow-up Attacks . | . . . . . Damage Inflicted 1719 | . 482 468 . 769 Guns 1587 | . 482 468 . 637 Cannons 122 | . . . . 122 Explosions . | . . . . . Melee . | . . . . . Ramming 10 | . . . . 10 Kinetic 1127 | . 482 468 . 177 Thermal 367 | . . . . 367 Explosive . | . . . . . Electromagnetic 215 | . . . . 215 Impact . | . . . . . Slashing . | . . . . . Piercing . | . . . . . Highest Corruption 8 | . . . . 8 Average Corruption 6 | . . . . 6 Corruption Purged . | . . . . . Corruption Blocked . | . . . . . Effects 16 | . . . . 16 Message Errors 2 | . . . . 2 Matter Fused 3 | . . . . 3 Energy Discharges 2 | . . . . 2 Data Loss (minor) 3 | . . . . 3 Data Loss (major) 3 | . . . . 3 Misfires 3 | . . . . 3 Overload Shots . | . . . . . Overflow Damage . | . . . . . Projectiles . | . . . . . Explosions . | . . . . . Melee . | . . . . . Knockbacks . | . . . . . Impact . | . . . . . Kinetic . | . . . . . Secondary . | . . . . . Self-Inflicted Damage 1 | . . . . 1 Shots . | . . . . . Rammed 4 | . . . . 4 Targets Rammed 4 | . . . . 4 Kicked . | . . . . . Crushed . | . . . . . Highest Temperature 295 | . 17 1 . 295 Average Temperature 54 | . 7 1 . 70 Received Heat Transfer 1170 | . 399 87 . 684 Siege Activations . | . . . . . Robots Corrupted 1 | . . . . 1 Combat Hostiles 1 | . . . . 1 Parts Fried 4 | . . . . 4 Impact Corruptions . | . . . . . Robots Melted . | . . . . . Combat Hostiles . | . . . . . Parts Melted 2 | . . . . 2 Heat Transferred 522 | . . . . 522 Parts Sabotaged . | . . . . . Parts Stolen . | . . . . . Parts Stripped . | . . . . . Power Chain Reactions . | . . . . . Alert | -11 -10 -9 -8 -8 ------- Run | Yrd Mat Mat Mat Sto Peak Influence 394 | . 118 394 128 262 Initial 128 | . . 29 128 53 Average 128 | . 54 201 128 153 Maximum Alert Level 1 | . . 1 . 1 Low Security (%) 80 | . 100 60 100 74 Level 1 19 | . . 39 . 25 Level 2 . | . . . . . Level 3 . | . . . . . Level 4 . | . . . . . Level 5 . | . . . . . High Security . | . . . . . Max Security . | . . . . . Squads Dispatched 7 | . 1 1 . 5 Investigation 3 | . 1 . . 2 Extermination . | . . . . . Reinforcement 1 | . . 1 . . Assault . | . . . . . Garrison 3 | . . . . 3 Intercept . | . . . . . Searches Triggered . | . . . . . Construction Impeded . | . . . . . Haulers Reinforced . | . . . . . Active Scanning Responses . | . . . . . Cargo Convoy Interrupts . | . . . . . Stealth | -11 -10 -9 -8 -8 --------- Run | Yrd Mat Mat Mat Sto Distress Signals 2 | . . 2 . . Communications Jammed . | . . . . . Distress Signals . | . . . . . Times Spotted 57 | . 12 24 . 21 Peak Tracking Total 10 | . 3 7 . 10 Tactical Retreats 5 | . . 3 . 2 Traps | -11 -10 -9 -8 -8 ------- Run | Yrd Mat Mat Mat Sto Traps Triggered 4 | . 1 . . 3 Indirectly . | . . . . . Trap Hack Attempts 3 | . . . . 3 Triggered . | . . . . . Disarmed 4 | . . 4 . . Reprogrammed 1 | . . . . 1 Reused . | . . . . . Traps Extracted 1 | . . . . 1 Installed . | . . . . . Triggered . | . . . . . Most Traps Carried 1 | . . . . 1 Machines | -11 -10 -9 -8 -8 ---------- Run | Yrd Mat Mat Mat Sto Machines Disabled . | . . . . . Max in Single Turn . | . . . . . Machines Repaired . | . . . . . Machines Dismantled . | . . . . . Machines Sabotaged . | . . . . . Overloaded Fab Kills . | . . . . . Hacking | -11 -10 -9 -8 -8 --------- Run | Yrd Mat Mat Mat Sto Machines Accessed 10 | . 4 1 . 5 Terminals 10 | . 4 1 . 5 Fabricators . | . . . . . Repair Stations . | . . . . . Recycling Units . | . . . . . Scanalyzers . | . . . . . Garrison Access . | . . . . . Total Hacks 35 | . 10 8 . 17 Successful 18 | . 6 4 . 8 Failed 17 | . 4 4 . 9 Catastrophic 3 | . 2 . . 1 Database Lockouts . | . . . . . Manual 14 | . 4 1 . 9 Terminals 35 | . 10 8 . 17 Fabricators . | . . . . . Repair Stations . | . . . . . Recycling Units . | . . . . . Scanalyzers . | . . . . . Garrison Access . | . . . . . Terminal Hacks 11 | . 3 3 . 5 Prototype ID Bank 1 | . . . . 1 Open Door 1 | . . . . 1 Branch Access Points 1 | . 1 . . . Locate Traps 3 | . 1 1 . 1 Disarm Traps 1 | . . 1 . . Registered Components 1 | . . . . 1 Registered Prototypes 2 | . 1 . . 1 Zone Layout 1 | . . 1 . . Fabricator Hacks . | . . . . . Repair Station Hacks . | . . . . . Recycling Unit Hacks . | . . . . . Scanalyzer . | . . . . . Garrison Access Hacks . | . . . . . Unauthorized Hacks 7 | . 3 1 . 3 Terminals 7 | . 3 1 . 3 Botnet 7 | . 3 1 . 3 Fabricators . | . . . . . Repair Stations . | . . . . . Recycling Units . | . . . . . Scanalyzers . | . . . . . Garrison Access . | . . . . . Data Cores Recovered . | . . . . . Used . | . . . . . Hacking Detections 10 | . 4 1 . 5 Full Trace Events 2 | . . . . 2 Feedback Events . | . . . . . Feedback Blocked . | . . . . . Robot Schematics Acquired . | . . . . . Robots Built . | . . . . . Authchips . | . . . . . Time . | . . . . . Total Robot Build Rating . | . . . . . Part Schematics Acquired . | . . . . . Parts Built . | . . . . . Authchips . | . . . . . Time . | . . . . . Total Part Build Rating . | . . . . . Parts Repaired . | . . . . . Time . | . . . . . Parts Recycled . | . . . . . Recycled Matter . | . . . . . Retrieved Matter . | . . . . . Retrieved Components . | . . . . . Parts Scanalyzed . | . . . . . Part Schematics Acquired . | . . . . . Parts Damaged . | . . . . . Bothacking | -11 -10 -9 -8 -8 ------------ Run | Yrd Mat Mat Mat Sto Used RIF Installer . | . . . . . Robots Hacked . | . . . . . Non-combat . | . . . . . Combat . | . . . . . Robot Hacks Applied . | . . . . . Relay Couplers Released . | . . . . . Fabnet Peak Effective % . | . . . . . Robots Rewired . | . . . . . Allies Hacked . | . . . . . Hacks Repelled . | . . . . . Allies | -11 -10 -9 -8 -8 -------- Run | Yrd Mat Mat Mat Sto Total Allies . | . . . . . Largest Group . | . . . . . Highest-Rated Group . | . . . . . Highest-Rated Ally . | . . . . . Total Orders . | . . . . . Ally Attacks . | . . . . . Total Damage . | . . . . . Kills . | . . . . . Allies Corrupted . | . . . . . Allies Melted . | . . . . . Intel | -11 -10 -9 -8 -8 ------- Run | Yrd Mat Mat Mat Sto Robot Analysis Total . | . . . . . Derelict Logs Recovered . | . . . . . Drone Launches . | . . . . . Drone Recoveries . | . . . . . Exploration | -11 -10 -9 -8 -8 ------------- Run | Yrd Mat Mat Mat Sto Turns Passed 1788 | . 660 464 37 627 Spaces Moved 942 | 1 410 214 23 294 Core 20 | . . . . 20 Treads 226 | . . . . 226 Legs 696 | 1 410 214 23 48 Wheels . | . . . . . Hover . | . . . . . Flight . | . . . . . Fastest Speed 120 | 120 120 120 120 120 Average Speed 139 | 120 120 161 120 152 Slowest Speed 190 | 120 120 190 120 160 Overloaded Moves . | . . . . . Propulsion Burnouts . | . . . . . Robots Hopped . | . . . . . Cave-ins Triggered . | . . . . . Exploration Rate (%) 29 | 2 58 27 3 57 Regions Visited 4 Branch Regions 1 Pre-discovered Areas . | . . . . . Known Exits Taken . | . . . . . Unknown Exits Taken 4 | 1 1 1 1 . Scrap Searched . | . . . . . Spaces Dug . | . . . . . Terrain Destroyed . | . . . . . Melee . | . . . . . Projectile . | . . . . . AOE . | . . . . . Terrain Rammed . | . . . . . Walls Destroyed . | . . . . . Machines Disabled . | . . . . . Actions | -11 -10 -9 -8 -8 --------- Run | Yrd Mat Mat Mat Sto Total 1220 | . 511 269 31 409 Wait 83 | . 14 16 . 53 Move 938 | . 409 213 22 294 Hop . | . . . . . Pick Up 26 | . 16 4 2 4 Fast Attach 9 | . 1 1 2 5 Attach 12 | . 4 2 3 3 Detach . | . . . . . Swap 6 | . . . 1 5 Drop 15 | . 12 . 1 2 Fire 123 | . 55 33 . 35 Melee 1 | . . . . 1 Ram 1 | . . . . 1 Kick . | . . . . . Crush 3 | . . . . 3 Escape Stasis . | . . . . . Rewire . | . . . . . Trap 3 | . . . . 3 Miscellaneous . | . . . . . Route ------- -11/Scrapyard -10/Materials (discovered 2 exits: *Mat / *Min) -9/Materials -8/Materials -8/Storage History --------- Turn | Location | Event 1 | -11/Scrapyard | Discovered new exit (range 0) 1 | -11/Scrapyard | Entered Materials 206 | -10/Materials | Discovered new exit (range 15) 315 | -10/Materials | Build established: Mutant 348 | -10/Materials | Discovered new exit (range 9) 536 | -10/Materials | Core integrity fell below 50% 581 | -10/Materials | Identified exit to Mines 661 | -10/Materials | Entered another Materials area 661 | -9/Materials | Evolved 2 slots: Propulsion x1, Utility x1 1063 | -9/Materials | Discovered new exit (range 13) 1125 | -9/Materials | Entered another Materials area 1125 | -8/Materials | Evolved 2 slots: Propulsion x1, Utility x1 1128 | -8/Materials | Discovered new exit (range 9) 1148 | -8/Materials | Lost 4 parts (1p1u2w) 1162 | -8/Materials | Entered Storage 1345 | -8/Storage | Lost 3 parts (1p2n) 1572 | -8/Storage | Garrison activated, responded to threat 1702 | -8/Storage | Build established: Scavenger-Mutant 1761 | -8/Storage | Core integrity fell below 50% 1778 | -8/Storage | Core integrity fell below 20% 1789 | -8/Storage | Destroyed by Y-45 Defender with Beam Rifle Last Messages --------------- Lgt. Treads destroyed. U-05 Engineer builds a Wall. U-05 Engineer lays Concrete. Slammed into G-47 Trooper. Slammed into H-55 Commando. Lgt. Treads destroyed. Slammed into H-55 Commando. Weapon Cycler destroyed. U-05 Engineer builds a Wall. Weapon Cycler destroyed. U-05 Engineer lays Concrete. U-05 Engineer builds a Wall. U-05 Engineer lays Concrete. U-05 Engineer builds a Wall. U-05 Engineer lays Concrete. Penetrated by Slug. Terminal disabled. K-01 Serf collects debris. ||#1CG98RSXNJH=LV,UH7E,JI K-01 Serf collects debris. Map ----- +----------------------------------------------------+ | | | | | | | | | | | | | ?????????????????????????????????????????????????? | | ####???????????###??###??????????????????????????? | | ###########T####T##################?????????? | | ????????? | | T ^ ????????? | | ^ & ????????? | | ####/################/###########???????????? | | # ???# #?????# #???????????????? | | ?????# #?????# #???????????????? | | ?????# #?????# """" """"" #???????????????? | | ?????# #?????# """"" """"" #???????????????? | | ?????# #????## """"" """"" #???????????????? | | ?????# #????# #???????????????? | | ?????# #????#######+###############????????? | | ?????# #????????# #####################" | | ?????# ########## u #" | | ?????# / + | | ?????# ##########! #" | | ?????#########????????# Yk###############"##+##" | | ??????????????########## @ ##??????##### %%% #?? | | ??????????????# # #???????????# #?? | | ??????????????# # #???????????# #?? | | ??????????????# """" # #???????????# """#?? | | ??????????????# ""??" + #???????????# """#?? | | ??????######### ""???" # + **#??????# """#?? | | + + "????" #r # "**#??????# #?? | | ??????######### "??"" # #T#????????? """#?? | | ??????????????# """ # #?#????????## """??? | | ??????????????# # #???????????# ""???? | | ??????????????######/### #?? ????????# ????? | | ???????????????????# #?# #? ????????##" "#????? | | ???????????????????# #?# # ""?????????#"R"#????? | | ??????????????##???# ### #""""?????????"""?????? | | ?????????###### ##?#=% +%"""?????????????????? | | ?????????# T ?# #" ????????????? | | ?????????# #* #?????????????????????? | | ?????????# #% #?????????????????????? | | ?????????# +! #?????????????????????? | | ?????????# ]]] # #?????????????????????? | | ?????????# ]=] # #####?????????????????????? | | ?????????# ]]] ?# #?????????????????????????? | | ?????????#] ?# #?????????????????????????? | | ?????????###" "##??# #?????????????????????????? | | ???????????#"G"????# #?????????????????????????? | +----------------------------------------------------+ Best States ------------- Heat Dissipation 31 Energy Generation 12 Energy Capacity 265 Matter Stores 300 Matter Capacity 300 Sight Range 16 Terrain Scan Density 10 Armor Coverage 225 Weapon Cycling 30 Evasion (%) 55 Recoil Reduction 3 Trap Extractor Capacity 6 Item Schematics ----------------- None Robot Schematics ------------------ None Fabricated ------------ Nothing Alien Tech Used ----------------- None Achievements -------------- None Challenges ------------ None Game ------ Seed FirePropulsionSteel Manual? 0 Play Time 00:35:21 Cumulative 35.1 hours Start 2024.04.21 @ 18:04:34 End 2024.04.21 @ 18:38:55 Sessions 1 Manual Loads 0 Difficulty Rogue Special Mode None Game No. 39 Rogue 39 Adventurer 0 Explorer 0 Win Type - Total 0 Types 0/0/0/0/0/0/0/0/0 Lore% 34 Gallery% 24 Achievement% 27 Wizard Run 0 Options --------- Layout 1 ASCII 0 Keyboard 1 Movement Numpad Keybinds 0 Fullscreen 2 Font 20/SmallcapsGlow Map View 54x42 Zoom Use 0% Tactical HUD 0 Map Filters NONE Filters NONE Steam 1 RUN: aef9cd00-1105-44b2-9b34-ca46274867f7